Workbook

Sheet Cover
D8: Resource Savings Calculator: Reduction of Low-Value Laboratory Tests
D12: This economic tool was developed by CADTH to assist decision-makers considering the impact of reducing the use of five low value lab tests identified by Choosing Wisely Canada. The objective is to estimate the potential savings associated if the utilization of these five tests are reduced. Although outside the scope of this tool, by quantifying the potential resource savings, this may provide laboratories with insights on the magnitude of savings expected that could potentially be reinvested towards higher-value laboratory tests to further improve the quality of patient care.
D14: The tool is provided for estimation purposes only and does not constitute any policy advice.
D15: This tool provides a standardized workbook that estimates the cost and analyzer time impact associated with reductions in lab test ordering. A four step process is introduced in which users must populate some input parameters, as relevant to their institutions. A fifth step (optional) exists for users who are interested in exploring the resource impact of reordering lab tests when abnormal findings are found in the original low-value laboratory tests. For inputs populated by CADTH, additional validation of these parameters within the "Inputs-" worksheets is required to ensure the impact calculator produces results that accurately reflect the user's institutional setting.
D17: How to Use this Excel Tool
D19: Navigation: To Navigate through this tool, use the buttons at the top of each worksheet or the worksheet tabs at the bottom of the screen. On the five "Inputs-" worksheets, review (and edit if necessary) the value of each input parameter. After reviewing all input values in these worksheets, view the results of the analysis on the "Results" worksheet.
D22: Enable macros: To simplify the viewing of this tool, and to restore defaults, CADTH has employed macros. In order to ensure the full functionality of the tool, users must enable macros. If macros are not enabled, some steps may not be displayed.
D25: Model Legend: Default values for each modifiable input parameter are shown on the respective "Inputs-" worksheets within this tool. Users may enter alternate values in the blue cells within this tool, which will be used automatically throughout the tool's calculations. If alternative data are used, use the "Restore Inputs" button on the "Inputs-" worksheets to restore the original default values in the model. Note that clicking Restore Defaults on any Inputs sheet will restore ALL default inputs, across all input sheets.
G28: Fixed input or formula cell - user should not modify
G30: User-modifiable cell where the user can input alternative value.
G31: Note: Where default values are defined, user input values will overide default values.
G33: User-modifiable cell where the user can select an alternative value from a dropdown menu
G34: Note: Where default values are defined, user input values will overide default values.
E36: Error | G36: There may be instances where the tool is used incorrectly and is expected to produce erroneous results. In such instances, either an "Error" message or cells with red font are programmed to appear.
G38: Restoring defaults will be applied throughout this tool (i.e. all user-input values will be erased and default values, where set by CADTH, will be adopted).
D41: Saving the Model: As with any file in Excel, this tool must be saved if any changes are made that need to be retained. Multiple versions of the tool may be saved to handle different scenarios or input parameters. Using File/Save As allows the user to save multiple versions of the tool under different file names.

Sheet Overview
C6: Calculator Overview
C8: This sheet provides an overivew of the tool, key assumptions and abbreviations.
C10: Overview
C12: Objective | D12: To estimate the potential resource impact of reducing the use of 5 low-value lab tests: - AST, including decoupling of routinely coupled AST/ALT - Urea, including decoupling of Urea/Creatinine - CK-MB, when troponin is available - PTT, including decoupling of routinely coupled PT/INR/PTT - Serum Folate
C13: Perspective | D13: Canadian public hospital lab setting
C14: Time Horizon | D14: 2 years
C15: Discounting & Inflation | D15: Over the two year time horizon, it was assumed that costs would neither be discounted or inflated
C16: Costs | D16: Total direct costs for AST, Urea, CK-MB: Supplies and reagent Total direct costs for PTT: Supplies and reagent, compensation (UPP) Total direct costs for Serum Folate: Supplies and reagent, compensation (MOS, MP, UPP), sundry, equipment, buildings/grounds, receiving and accessioning
C17: Outcomes | D17: Total direct costs and total analyzer time (analysis time and reporting time)
C18: Description | D18: The resource impact was estimated through a comparison of two hypothetical scenarios: - Scenario 1: The institution's cost and resource use based on current annual volumes of the 5 lab tests - Scenario 2: The institution's cost and resource use based on the hypothetical reductions in the annual volume of the 5 lab tests
C20: Key Assumptions
C22: Direct cost savings: coupled tests | D22: It was assumed that, for coupled tests, the main driver of direct cost savings would be in the form of reagent/supply costs. This is because the test that these tests are coupled to will be processed on the same analyzer, so other costs associated with these tests are not expected to change. In addition, since PTT testing can require manual technician support, the cost of that support was also included.
C23: Direct cost savings: standalone tests | D23: For standalone tests, it was assumed that the entire direct cost of the test would be saved if these tests were reduced.
C24: Analyzer and reporting time: CK-MB | D24: Analyzer time estimates were not available for CK-MB. Therefore, analyzer time was set to be equal to AST. Reporting time was set to be equal to other labs (2.5 minutes)
C25: Cost savings associated with repeating an abnormal test (exploratory analysis) | D25: It was assumed that when a coupled test is abnormal, the entire direct cost of the test will be incurred if the test is reordered. This is based on the assumption that had the test not been abnormal, no further testing of this type would be required. If additional tests are required, including a repeat of the coupled test or additional labs tests to investigate an abnormal finding, this approach could underestimate costs associated with repeating abnormal lab tests.
C26: Frequency that an abnromal test will be repeated (exploratory analysis) | D26: Data informing reordering practices for abnormal lab tests were not available. Therefore, based on clinical expert panel consensus, it was assumed that when a test is unexpectedly abnormal, it will be repeated 75% of the time
C27: Implementation | D27: This tool does not include the cost and time of implementation to reduce the use of these 5 low-value lab tests. As such, the potential savings estimated using this tool may be overestimated if the expected cost and time required to implement the change is high.
C29: Abbreviations
C31: AST | D31: Aspartate aminotransferase
C32: CK-MB | D32: Creatine kinase-MB
C33: EORLA | D33: Eastern Ontario Regional Laboratory Association
C34: INR | D34: International normalized ratio
C35: MOS | D35: Management and Office Support (clerical and management staff)
C36: MP | D36: Medical Practitioner or Medical & Scientific staff (in the context of lab, pathologists and scientific such as biochemists, microbiologists, etc.)
C37: PT | D37: Prothrombin time
C38: PTT | D38: Partial thromboplastin time
C39: UPP | D39: Unit Producing Personnel (in the context of lab, these are all the staff that are lab technicians or Medical Laboratory Technologists)

Sheet Instructions
C6: Instructions
C8: This sheet provides an overview of the steps required to derive a resource impact estimate.
C9: For steps that say define (Step 1), users MUST populate values. Although default values have been provided, these are unlikely to be appropriate for your jurisdiction.
C10: For steps that say validate (Steps 2 to 4), default values have been provided. Users should validate that the values reflect their jurisdictional context. If the default values are not appropriate for your jurisdiction, users can define alternatives.
C13: Step 1. Define current test volumes in your institution
C14: In step 1, users must define the current volume of lab tests being conducted in their institution in a world where there are no reductions or changes to lab test ordering.
C15: Defaults have been provided, however, these are unlikely to reflect your jurisdiction. Therefore, for the most accurate resource-saving estimates, users must define current testing volumes.
C17: Step 2. Validate percent reductions in testing
C18: In step 2, users have two options to specify reductions in the low value lab-tests.
C19: In the 'Percent reduction' approach, users should validate the default percent reductions in lab testing expected to occur in a world where there are policy or institutional changes to lab test ordering. Users may enter alternative percent reductions in testing if the defaults provided are not appropriate for their jurisdictional context.
C20: In the 'Volume of lab tests' approach, users must define the annual volumes of tests expected to occur in a world where there are policy or institutional changes to lab test ordering.
C22: Step 3. Validate direct lab test costs
C23: In step 3, users should validate default direct lab testing costs provided. Users may enter alternative direct costs if defaults provided are not appropriate for their jurisdictional context.
C25: Step 4. Validate analyzer time.
C26: In step 4, users should validate default analyzer and reporting times provided. Users may enter alternative analyzer and reporting times if defaults provided are not appropriate for their jurisdictional context.
C28: Optional Step
C29: The tool has the ability to estimate direct lab testing costs associated with investigating abnormal test findings occurring in the 5 low-value lab tests
C30: Note that this step is optional: impact results will be populated for direct costs and analyzer times with or without consideration of this step.
C32: Step 5. Validate the costs of reordering abnormal tests.
C33: In step 5, users should validate default percentages of abnormal tests, default percentage of test re-ordering and default direct costs associated with re-ordering.
C34: Users may enter alternative percentages and direct costs if defaults provided are not appropriate for their jurisdictional context.
C36: Would you like to explore the potential cost savings associated with re-ordering abnormal labs?
I57: 1

Sheet Inputs-Current test volumes
C6: Inputs: Current Lab Test Volume
C8: 1. Define the current volume of lab tests being conducted in your institution.
C9: The first step required is to estimate the current volume of tests being conducted in your institution (i.e., the status quo). Note that this is to reflect current volumes in a world where there are no reductions or changes to lab test ordering.
C10: Default lab test volumes have been provided. Users may adjust the default values by their insitutiton's total bed days occupied per annum.
C11: Additionally, to ensure current lab test volume reflects their institution, users can also manually enter the test volumes for 2021 and 2022 based on institutional records and projections.
E13: Default | H13: Source/Notes
E14: Number of tests annually
C15: Test | E15: 2021 | F15: 2022
C16: Urea | E16: =INDEX('Central NS test numbers'!$B$3:$K$9,5,MATCH($C16,'Central NS test numbers'!$B$3:$K$3,0)) -> 118039 | F16: =INDEX('Central NS test numbers'!$B$3:$K$9,6,MATCH($C16,'Central NS test numbers'!$B$3:$K$3,0)) -> 114191 | H16: Default values for 2021 are based on total annual tests conducted in two inpatient sites at the Queen Elizabeth II Health Sciences Centre (Halifax Infirmary and Victoria General)
C17: AST | E17: =INDEX('Central NS test numbers'!$B$3:$K$9,5,MATCH($C17,'Central NS test numbers'!$B$3:$K$3,0)) -> 29246 | F17: =INDEX('Central NS test numbers'!$B$3:$K$9,6,MATCH($C17,'Central NS test numbers'!$B$3:$K$3,0)) -> 30970
C18: CK-MB | E18: =INDEX('Central NS test numbers'!$B$3:$K$9,5,MATCH($C18,'Central NS test numbers'!$B$3:$K$3,0)) -> 0 | F18: =INDEX('Central NS test numbers'!$B$3:$K$9,6,MATCH($C18,'Central NS test numbers'!$B$3:$K$3,0)) -> 0 | H18: The total bed days occupied per annum was about 330,000 for both sites combined.
C19: PTT | E19: =INDEX('Central NS test numbers'!$B$3:$K$9,5,MATCH($C19,'Central NS test numbers'!$B$3:$K$3,0)) -> 51577 | F19: =INDEX('Central NS test numbers'!$B$3:$K$9,6,MATCH($C19,'Central NS test numbers'!$B$3:$K$3,0)) -> 51435 | H19: Default values for 2022 were based on linear projections of test volumes from 2018 to 2021.
C20: Serum Folate | E20: =INDEX('Central NS test numbers'!$B$3:$K$9,5,MATCH($C20,'Central NS test numbers'!$B$3:$K$3,0)) -> 1603 | F20: =INDEX('Central NS test numbers'!$B$3:$K$9,6,MATCH($C20,'Central NS test numbers'!$B$3:$K$3,0)) -> 1635
C23: 1. a) Would you like to adjust the volume of default labs conducted annually to your institution based on your institution's total bed days occupied per annum?
H24: Note: It is not required to adjust default volumes by their hospital bed days. In the following step, users can enter the volume of lab tests in their institution.
C26: Please enter the total bed days occupied per annum
E28: Default Values Adjusted by Institutional Bed Days
E29: Number of tests annually
C30: Test | E30: 2021 | F30: 2022
C31: Urea | E31: =IF(Switch_beddayadjustment="",E16,E16*Adjusting_multiplier) -> 118039 | F31: 114191 | H31: =IF(AND(Switch_beddayadjustment="Yes",Range_beddays=""),"Error: Enter your institution's annual bed days to see adjusted default values","") ->  | AB31: Adjusting multiplier | AC31: =IF(Range_beddays>0,Range_beddays/AC32,100%) -> 1
C32: AST | E32: 29246 | F32: 30970 | AB32: NS health number | AC32: 330000
C33: CK-MB | E33: 0 | F33: 0
C34: PTT | E34: 51577 | F34: 51435
C35: Serum Folate | E35: 1603 | F35: 1635
C37: 1. b) Enter the number of tests conducted annually in your institution.
E39: User Input | H39: Source/Notes
E40: Number of tests annually
C41: Test | E41: 2021 | F41: 2022
C42: Urea | H42: Enter the total lab test volumes in your institution annually in a world where there is no change to lab ordering practices.
C43: AST | H43: If a lab is not currently being used in your institution, enter 0 for that lab volume.
C44: CK-MB
C45: PTT
C46: Serum Folate | H46: Note: User input values will override defaults, including default values that have been adjusted by institutional bed days (if applicable).
E47: =IF(AND(Switch_beddayadjustment="Yes",SUM(E42:E46)=0),"",IF((COUNTBLANK(E42:E46)<>0),"Error: Users must enter volumes for all lab tests for 2021. If a lab is not currently being used in your institution, enter 0 for that lab volume.","")) -> Error: Users must enter volumes for all lab tests for 2021. If a lab is not currently being used in your institution, enter 0 for that lab volume. | F47: =IF(AND(Switch_beddayadjustment="Yes",SUM(E42:F46)=0),"",IF(AND(SUM(E42:E46)>0,SUM(F42:F46)=0),"Error: Users must enter volumes for 2022; otherwise default values for 2022 listed above will be used",IF((COUNTBLANK(F42:F46)<>0),"Error: Users must enter volumes for all lab tests for 2022. If a lab is not currently being used in your institution, enter 0 for that lab volume.",""))) -> Error: Users must enter volumes for all lab tests for 2022. If a lab is not currently being used in your institution, enter 0 for that lab volume.
E48: Current Value
E49: Number of tests annually
C50: Test | E50: 2021 | F50: 2022
C51: Urea | E51: =IF(E42="",IF($F$24="Yes",E31,E16),E42) -> 118039 | F51: 114191
C52: AST | E52: 29246 | F52: 30970
C53: CK-MB | E53: 0 | F53: 0
C54: PTT | E54: 51577 | F54: 51435
C55: Serum Folate | E55: 1603 | F55: 1635

Sheet Inputs-Reductions in testing
C6: Inputs: Anticipated Reduction in Lab Test Volume
C8: 2. Validate the anticipated reductions lab testing volumes at your institution.
C9: The second step is to define the anticipated volume of lab test in a world where there are policy or institutional changes to lab test ordering. This is the future state that has not yet been implemented in your institution, so it should reflect the anticipated reductions in lab tests associated with policy changes being considered.
C11: First, users will select how they would like to define the anticipated changes in lab tests (step 2a). Second, based on the selected approach, users will validate default values provided by CADTH and enter alternative values where appropriate.
C13: 2. a) How would you like to define a change in lab test utilization?
C14: Select approach: | I14: Users have two options to enter the desired change in lab test utilization.
I15: i) CADTH has populated default percent reductions in lab tests based on the literature and clinical expert opinion.
I16: ii) Institutions can enter the expected volume of tests that will be conducted annually.
C18: Volume approach | F18: User Input | I18: Source/Notes
F19: Number of tests conducted annually
C20: Test | F20: 2021 | G20: 2022
C21: Urea | I21: If undertaking a volume approach, users must enter the annual volumes of tests expected to be conducted in their institution in a world with a policy change to reduce tests.
C22: AST
C23: CK-MB
C24: PTT | I24: If volumes are not entered, no impact results will be generated.
C25: Serum Folate | I25: If no lab volume was entered in the current testing scenario, the input cell will appear blocked out as testing volumes are already 0.
C27: Percent reduction approach | F27: Default
F28: Percent reduction in lab tests
C29: Test | F29: 2021 | G29: 2022 | I29: Source/Notes
C30: Urea | F30: 0.95 | G30: 0.95 | I30: According to the clinical expert panel, 5% of the time the coupled test (creatinine and urea) would be indicated
C31: AST | F31: 0.9 | G31: 0.9 | I31: According to the clinical expert panel, 10% of the time the coupled test (ALT and AST) would be indicated
C32: CK-MB | F32: 1 | G32: 1 | I32: Assumption: CK-MB would no longer be used in centres with troponin available
C33: PTT | F33: 0.75 | G33: 0.75 | I33: According to the clinical expert panel, PTT will be needed 25% of the time.
C34: Serum Folate | F34: 0.95 | G34: 0.95 | I34: Informed by MacMillan et al. (2018) and validated by clinical expert panel.
F36: User Input | I36: Source/Notes
F37: Percent reduction in lab tests
C38: Test | F38: 2021 | G38: 2022
C39: Urea | I39: Users can enter alternative percent reductions by year.
C40: AST
C41: CK-MB
C42: PTT
C43: Serum Folate
F45: Current Value
F46: Percent reduction in lab tests
C47: Test | F47: 2021 | G47: 2022
C48: Urea | F48: =IF(F39="",F30,F39) -> 0.95 | G48: =IF(G39="",G30,G39) -> 0.95
C49: AST | F49: =IF(F40="",F31,F40) -> 0.9 | G49: =IF(G40="",G31,G40) -> 0.9
C50: CK-MB | F50: =IF(F41="",F32,F41) -> 1 | G50: =IF(G41="",G32,G41) -> 1
C51: PTT | F51: =IF(F42="",F33,F42) -> 0.75 | G51: =IF(G42="",G33,G42) -> 0.75
C52: Serum Folate | F52: =IF(F43="",F34,F43) -> 0.95 | G52: =IF(G43="",G34,G43) -> 0.95
F54: Current Value
F55: Volume Approach
F56: 2021 | G56: 2022
C57: Urea | F57: =IFERROR(100%-F21/'Inputs-Current test volumes'!E51,0) -> 1 | G57: =IFERROR(100%-G21/'Inputs-Current test volumes'!F51,0) -> 1
C58: AST | F58: =IFERROR(100%-F22/'Inputs-Current test volumes'!E52,0) -> 1 | G58: =IFERROR(100%-G22/'Inputs-Current test volumes'!F52,0) -> 1
C59: CK-MB | F59: =IFERROR(100%-F23/'Inputs-Current test volumes'!E53,0) -> 0 | G59: =IFERROR(100%-G23/'Inputs-Current test volumes'!F53,0) -> 0
C60: PTT | F60: =IFERROR(100%-F24/'Inputs-Current test volumes'!E54,0) -> 1 | G60: =IFERROR(100%-G24/'Inputs-Current test volumes'!F54,0) -> 1
C61: Serum Folate | F61: =IFERROR(100%-F25/'Inputs-Current test volumes'!E55,0) -> 1 | G61: =IFERROR(100%-G25/'Inputs-Current test volumes'!F55,0) -> 1
F63: Current Value
F64: Choice of approach
F65: 2021 | G65: 2022
C66: Urea | F66: =IF(Switch_Labtestutilization="Volume of lab tests",F57,F48) -> 0.95 | G66: =IF(Switch_Labtestutilization="Volume of lab tests",G57,G48) -> 0.95
C67: AST | F67: 0.9 | G67: 0.9
C68: CK-MB | F68: 1 | G68: 1
C69: PTT | F69: 0.75 | G69: 0.75
C70: Serum Folate | F70: 0.95 | G70: 0.95

Sheet Inputs-Direct costs
C6: Inputs: Direct Costs
C8: 3. Validate direct lab costs.
C9: The third step of the tool is to define direct costs associated with the test. Default direct costs have been populated. Users may replace these unit costs with their own institutional costs.
C10: Direct costs are separated by tests that are being decoupled (AST, Urea, CK-MB and PTT) and those ordered as standalone tests based on expert feedback that the direct cost savings associated with reductions in these tests are influenced by whether they are coupled.
C13: 3. a) Coupled tests
C14: Feedback from the panel of clinical experts and a review of the literature indicated that, for coupled tests, the main savings associated with de-coupling will come from the reagents required to conduct the test. In addition, since PTT testing can require manual technician support, the cost of that support was also included.
C17: Test | F17: User Input | G17: Default | H17: Current Value | J17: Source/Notes
C18: Chemistry tests (direct cost include reagent and supply costs per test)
C19: Urea | G19: ='EORLA Cost data'!H30 -> 0.04 | H19: =IF(F19="",G19,F19) -> 0.04 | J19: EORLA reference labs; 2022-23 pricing
C20: AST | G20: ='EORLA Cost data'!H12 -> 0.04 | H20: =IF(F20="",G20,F20) -> 0.04 | J20: EORLA reference labs; 2022-23 pricing
C21: CK-MB | G21: 4 | H21: =IF(F21="",G21,F21) -> 4 | J21: Data informing CK-MB reagent/supply costs was not available. According to clinical expert panel consensus.
C23: Coagulation tests (direct costs include reagent and supply costs per test and unit producing personnel costs per test)
C24: PTT
C25: Supply and reagent cost per test | G25: ='EORLA Cost data'!H66 -> 1.26 | H25: =IF(F25="",G25,F25) -> 1.26 | J25: EORLA reference labs; 2022-23 pricing. Unit producing personnel costs are required for PTT as this test can involve a hands-on lab technician component. To explore cost-savings for PTT associated with reagent costs alone, enter 0 in the user input cell.
C26: Unit Producing Personnel | G26: ='EORLA Cost data'!H64 -> 2.47 | H26: =IF(F26="",G26,F26) -> 2.47
C27: Total Direct Costs for PTT | G27: =IF(F27="",H25+H26,G25+G26) -> 3.73 | H27: =IF(F27="",G27,F27) -> 3.73 | J27: Alternatively, users can manually enter a total direct cost per test for PTT.
C29: 3. b) Standalone tests
C30: It is assumed that if serum folate is not ordered, the entire direct cost of the Serum Folate test will be saved.
C31: For serum folate, direct costs include compensation (MOS, MP, UPP), supplies and reagents, sundry, equipment, buildings/grounds, receiving and accessioning.
C32: Default direct costs per test have been populated, along with a total direct cost for serum folate. Users may update the line-item component costs of the folate test, or update total direct folate costs to align with their institution.
C34: Serum Folate | F34: User Input | G34: Default | H34: Current Value | J34: Source/Notes
C35: Compensation - Management and Office Support | G35: ='EORLA Cost data'!H44 -> 0.19 | H35: =IF(F35="",G35,F35) -> 0.19 | J35: EORLA reference labs; 2022-23 pricing
C36: Compensation - Medical Practitioner | G36: ='EORLA Cost data'!H45 -> 0.15 | H36: 0.15 | J36: If line item is not expected to be saved with a reduction in serum folate testing in your institution, enter 0 for that line item.
C37: Compensation - Unit Producing Personnel | G37: ='EORLA Cost data'!H46 -> 0.86 | H37: 0.86
C38: Contracted out services | G38: ='EORLA Cost data'!H47 -> 0 | H38: 0
C39: Supply and reagent | G39: ='EORLA Cost data'!H48 -> 0.4 | H39: 0.4
C40: Sundry expense | G40: ='EORLA Cost data'!H49 -> 0.02 | H40: 0.02
C41: Equipment expense | G41: ='EORLA Cost data'!H50 -> 0.07 | H41: 0.07
C42: Buildings / Grounds expense | G42: ='EORLA Cost data'!H51 -> 0 | H42: 0
C43: Receiving & accessioning | G43: ='EORLA Cost data'!H52 -> 0.56 | H43: 0.56
C44: Total | G44: =IF(F44="",SUM(H35:H43),SUM(G35:G43)) -> 2.25 | H44: 2.25 | J44: Default total costs will be updated with user's entry. Alternatively, users can manually enter a total direct cost for serum folate.

Sheet Inputs-Analyzer Time
C6: Inputs-Analyzer time
C8: 4. Validate analyzer time.
C9: The fourth step of the tool is to validate the analyzer time associated with the five lab tests.
C10: Default analyzer times per test have been populated. Users may enter alternative analyzer times with their own institutional data.
E12: Default | K12: Notes/Source
E13: Test
C14: Time per test in minutes | E14: Urea | F14: AST | G14: CK-MB | H14: PTT | I14: Serum Folate
C15: Analysis time | E15: 8 | F15: 10 | G15: =F15 -> 10 | H15: =AVERAGE(5.5,15) -> 10.25 | I15: 43 | K15: Clinical expert panel. Estimates were not available for CK-MB, therefore, analyzer time was assumed to be equal to AST. Default values for urea, PTT and serum folate were derived from a standard in-lab analyzer
C16: Reporting time | E16: 2.5 | F16: 2.5 | G16: 2.5 | H16: 2.5 | I16: 2.5 | K16: Clinical expert panel. Reporting time when within auto-validation limits was between 2 to 3 minutes, therefore, 2.5 minutes was assumed as a default.
C17: Total | E17: =IF(E25="",SUM(E30:E31),SUM(E15:E16)) -> 10.5 | F17: 12.5 | G17: 12.5 | H17: =IF(H25="",SUM(H30:H31),SUM(H15:H16)) -> 12.75 | I17: =IF(I25="",SUM(I30:I31),SUM(I15:I16)) -> 45.5 | K17: The total default value will change if users input analyzer and/or reporting time under the user input table.
E20: User Input | K20: Notes/Source
E21: Test
C22: Time per test in minutes | E22: Urea | F22: AST | G22: CK-MB | H22: PTT | I22: Serum Folate
C23: Analysis time | K23: Users may enter alternative analyzer times associated with their institution. If analyzer time or reporting time is not expected to be saved with the reduction of a given lab test, enter 0.
C24: Reporting time
C25: Total | K25: Total time will be updated with user's entry. Alternatively, users can manually enter a total analysis time.
E27: Current Value
E28: Test
C29: Time in minutes | E29: Urea | F29: AST | G29: CK-MB | H29: PTT | I29: Serum Folate
C30: Analyzer time | E30: =IF(E23="",E15,E23) -> 8 | F30: =IF(F23="",F15,F23) -> 10 | G30: 10 | H30: 10.25 | I30: 43
C31: Reporting time | E31: =IF(E24="",E16,E24) -> 2.5 | F31: 2.5 | G31: 2.5 | H31: 2.5 | I31: 2.5
C32: Total | E32: =IF(E25="",E17,E25) -> 10.5 | F32: =IF(F25="",F17,F25) -> 12.5 | G32: =IF(G25="",G17,G25) -> 12.5 | H32: =IF(H25="",H17,H25) -> 12.75 | I32: =IF(I25="",I17,I25) -> 45.5

Sheet Inputs-Abnormal tests
C6: Inputs-Exploratory Analysis Abnormal Tests Costs
C8: 5. Validate costs of reordering abnormal tests
C9: Clinical panel feedback indicated that additional resources are often used investigating abnormal test findings. If a lab is unexpectedly abnormal (i.e., a test to be decoupled is abnormal but its coupled counterpart is normal), clinicians may re-order the abnormal test and/or additional tests to validate and investigate the abnormal lab.These unexpected instances are being considered as this could present additional cost savings associated with lab test reductions.
C12: Note that in this example, only the direct costs of re-ordering tests are considered; impacts on analyzer time are not examined.
C13: A three step approach follows to estimate the cost of following up on abnormal lab results among the tests that were identified to be reduced.
C15: 5. a) Validate the percentage of time the lab test will be unexpectedly abnormal.
C16: In this step, the instances where the tests to be reduced are abnormal are defined.
C18: Test | E18: Percentage of time the test is unexpectedly abnormal
E19: User Input | F19: Default | G19: Current Value | I19: Notes/Source
C20: Urea | F20: 0.15 | G20: =IF(E20="",F20,E20) -> 0.15 | I20: Clinical expert panel based on 2021 data from a single institution. When urea and creatinine are ordered together, urea may be abnormal ~15% of the time that creatinine is normal.
C21: AST | F21: 0.1 | G21: =IF(E21="",F21,E21) -> 0.1 | I21: Clinical expert panel based on 2021 data from a single institution. When AST and ALT are ordered together, AST may be abnormal 10% of the time that ALT is normal.
C22: CK-MB | F22: 0.07 | G22: =IF(E22="",F22,E22) -> 0.07 | I22: Sahedo et al. (2021). When CK-MB and troponin are ordered together, ~7% of the time its normal troponin with abnormal CK-MB.
C23: PTT | F23: 0.15 | G23: =IF(E23="",F23,E23) -> 0.15 | I23: Clinical expert panel based on 2021 data from a single institution. When PTT and PT/INR are ordered together, PTT may be abnormal 15% of the time that PT/INR is normal.
C24: Serum Folate | F24: 0.01 | G24: =IF(E24="",F24,E24) -> 0.01 | I24: Clinical expert panel.
C26: 5. b) Define the percentage of time a test will be repeated
C27: In order to calculate the costs of following up on abnormal test results, the percentage of time an abnormal test will be repeated must be defined.
C29: Test | E29: Percentage of time test will be repeated
E30: User Input | F30: Default | G30: Current Value | I30: Notes/Source
C31: Urea | F31: 0.75 | G31: =IF(E31="",F31,E31) -> 0.75 | I31: Data informing reordering practices was not available. Therefore, based on clinical expert panel consensus, it was assumed that when a test is unexpectedly abnormal, 75% of the time the test will be repeated.
C32: AST | F32: 0.75 | G32: =IF(E32="",F32,E32) -> 0.75
C33: CK-MB | F33: 0.75 | G33: =IF(E33="",F33,E33) -> 0.75
C34: PTT | F34: 0.75 | G34: =IF(E34="",F34,E34) -> 0.75
C35: Serum Folate | F35: 0.75 | G35: =IF(E35="",F35,E35) -> 0.75
C37: 5. c) Validate the direct cost savings associated with the repeating of the test
C38: It was assumed that when a coupled test is abnormal, the entire direct cost of the test will be incurred if the test is reordered. This is based on the assumption that had the test not been abnormal, no further testing of this type would be required.
C39: Note: This could be an underestimate of costs if the coupled test is also ordered or if a clinician orders further lab tests to investigate the abnormal finding.
E41: Total direct cost of test
E42: User Input | F42: Default | G42: Current Value
C43: Urea | F43: ='EORLA Cost data'!H25 -> 1.37 | G43: =IF(E43="",F43,E43) -> 1.37 | I43: Source: EORLA reference labs; 2022-23 pricing
C44: AST | F44: ='EORLA Cost data'!H7 -> 1.37 | G44: =IF(E44="",F44,E44) -> 1.37 | I44: Source: EORLA reference labs; 2022-23 pricing
C45: CK-MB | F45: 4 | G45: =IF(E45="",F45,E45) -> 4 | I45: Data informing CK-MB direct costs was not available. According to clinical expert panel consensus.
C46: PTT | F46: ='EORLA Cost data'!H62 -> 4.59 | G46: =IF(E46="",F46,E46) -> 4.59 | I46: Source: EORLA reference labs; 2022-23 pricing
C47: Serum Folate | F47: ='EORLA Cost data'!H43 -> 2.24 | G47: =IF(E47="",F47,E47) -> 2.24 | I47: Source: EORLA reference labs; 2022-23 pricing

Sheet Results
C6: Results
C8: This worksheet presents the results of the impact of reducing the five lab tests identified as being of low value by CWC.
C9: Detailed resource impact results are presented first. Totals for the world with and without reductions to lab test volumes are presented to the right of the resource impact results.
C11: Summary table: Resource Impact
F13: Year
E14: Resource Impact | F14: 2021 | G14: 2022 | H14: 2-Year Total
E15: Potential cost savings | F15: =F40 -> -153251.408 | G15: =G40 -> -152838.403 | H15: =H40 -> -306089.811
E16: Potential incremental analyzer time savings (hours) | F16: =F51 -> -34482.52104 | G16: =G51 -> -34166.46312 | H16: -68648.98417
E17: Exploratory analysis: Potential cost savings from avoiding repeated abnormal tests | F17: =F62 -> -39988.03559 | G17: =G62 -> -39529.55992 | H17: =H62 -> -79517.59552
E18: *Note: Negative values reflect cost savings
C21: Detailed Results: Resource Impact | L21: Detailed Results: World without reduction to low-value lab tests | U21: Detailed Results: World with reduction to low-value lab tests
F23: Year | O23: Year | X23: Year
E24: Number of test savings | F24: 2021 | G24: 2022 | H24: 2-Year Total | N24: Annual test volumes | O24: 2021 | P24: 2022 | Q24: 2-Year Total | W24: Annual test volumes | X24: 2021 | Y24: 2022 | Z24: 2-Year Total
E25: Urea | F25: ='Bkg-Impact Results'!D11 -> -112137.05 | G25: ='Bkg-Impact Results'!E11 -> -108481.45 | H25: =SUM(F25:G25) -> -220618.5 | N25: Urea | O25: ='Bkg-Ref scenario'!D11 -> 118039 | P25: ='Bkg-Ref scenario'!E11 -> 114191 | Q25: =SUM(O25:P25) -> 232230 | W25: Urea | X25: ='Bkg-ND scenario'!D11 -> 5901.95 | Y25: ='Bkg-ND scenario'!E11 -> 5709.55 | Z25: ='Bkg-ND scenario'!F11 -> 11611.5
E26: AST | F26: ='Bkg-Impact Results'!D12 -> -26321.4 | G26: ='Bkg-Impact Results'!E12 -> -27873 | H26: =SUM(F26:G26) -> -54194.4 | N26: AST | O26: ='Bkg-Ref scenario'!D12 -> 29246 | P26: ='Bkg-Ref scenario'!E12 -> 30970 | Q26: =SUM(O26:P26) -> 60216 | W26: AST | X26: ='Bkg-ND scenario'!D12 -> 2924.6 | Y26: ='Bkg-ND scenario'!E12 -> 3097 | Z26: ='Bkg-ND scenario'!F12 -> 6021.6
E27: CK-MB | F27: ='Bkg-Impact Results'!D13 -> 0 | G27: ='Bkg-Impact Results'!E13 -> 0 | H27: =SUM(F27:G27) -> 0 | N27: CK-MB | O27: ='Bkg-Ref scenario'!D13 -> 0 | P27: ='Bkg-Ref scenario'!E13 -> 0 | Q27: 0 | W27: CK-MB | X27: ='Bkg-ND scenario'!D13 -> 0 | Y27: ='Bkg-ND scenario'!E13 -> 0 | Z27: ='Bkg-ND scenario'!F13 -> 0
E28: PTT | F28: ='Bkg-Impact Results'!D14 -> -38682.75 | G28: ='Bkg-Impact Results'!E14 -> -38576.25 | H28: =SUM(F28:G28) -> -77259 | N28: PTT | O28: ='Bkg-Ref scenario'!D14 -> 51577 | P28: ='Bkg-Ref scenario'!E14 -> 51435 | Q28: 103012 | W28: PTT | X28: ='Bkg-ND scenario'!D14 -> 12894.25 | Y28: ='Bkg-ND scenario'!E14 -> 12858.75 | Z28: ='Bkg-ND scenario'!F14 -> 25753
E29: Serum Folate | F29: ='Bkg-Impact Results'!D15 -> -1522.85 | G29: ='Bkg-Impact Results'!E15 -> -1553.25 | H29: =SUM(F29:G29) -> -3076.1 | N29: Serum Folate | O29: ='Bkg-Ref scenario'!D15 -> 1603 | P29: ='Bkg-Ref scenario'!E15 -> 1635 | Q29: 3238 | W29: Serum Folate | X29: ='Bkg-ND scenario'!D15 -> 80.15 | Y29: ='Bkg-ND scenario'!E15 -> 81.75 | Z29: ='Bkg-ND scenario'!F15 -> 161.9
E30: *Note: Negative values reflect cost savings | N30: *Note: Negative values reflect cost savings | W30: *Note: Negative values reflect cost savings
F33: Year | O33: Year | X33: Year
E34: Direct cost savings | F34: 2021 | G34: 2022 | H34: 2-Year Total | N34: Direct costs | O34: 2021 | P34: 2022 | Q34: 2-Year Total | W34: Direct costs | X34: 2021 | Y34: 2022 | Z34: 2-Year Total
E35: Urea | F35: ='Bkg-Impact Results'!D20 -> -4485.482 | G35: ='Bkg-Impact Results'!E20 -> -4339.258 | H35: ='Bkg-Impact Results'!F20 -> -8824.74 | I35: =SUM(F35:G35) -> -8824.74 | N35: Urea | O35: ='Bkg-Ref scenario'!D20 -> 4721.56 | P35: ='Bkg-Ref scenario'!E20 -> 4567.64 | Q35: ='Bkg-Ref scenario'!F20 -> 9289.2 | R35: =SUM(O35:P35) -> 9289.2 | W35: Urea | X35: ='Bkg-ND scenario'!D20 -> 236.078 | Y35: ='Bkg-ND scenario'!E20 -> 228.382 | Z35: ='Bkg-ND scenario'!F20 -> 464.46
E36: AST | F36: ='Bkg-Impact Results'!D21 -> -1052.856 | G36: ='Bkg-Impact Results'!E21 -> -1114.92 | H36: ='Bkg-Impact Results'!F21 -> -2167.776 | I36: =SUM(F36:G36) -> -2167.776 | N36: AST | O36: ='Bkg-Ref scenario'!D21 -> 1169.84 | P36: ='Bkg-Ref scenario'!E21 -> 1238.8 | Q36: ='Bkg-Ref scenario'!F21 -> 2408.64 | R36: =SUM(O36:P36) -> 2408.64 | W36: AST | X36: ='Bkg-ND scenario'!D21 -> 116.984 | Y36: ='Bkg-ND scenario'!E21 -> 123.88 | Z36: ='Bkg-ND scenario'!F21 -> 240.864
E37: CK-MB | F37: ='Bkg-Impact Results'!D22 -> 0 | G37: ='Bkg-Impact Results'!E22 -> 0 | H37: ='Bkg-Impact Results'!F22 -> 0 | I37: 0 | N37: CK-MB | O37: ='Bkg-Ref scenario'!D22 -> 0 | P37: ='Bkg-Ref scenario'!E22 -> 0 | Q37: ='Bkg-Ref scenario'!F22 -> 0 | R37: 0 | W37: CK-MB | X37: ='Bkg-ND scenario'!D22 -> 0 | Y37: ='Bkg-ND scenario'!E22 -> 0 | Z37: ='Bkg-ND scenario'!F22 -> 0
E38: PTT | F38: ='Bkg-Impact Results'!D23 -> -144286.6575 | G38: ='Bkg-Impact Results'!E23 -> -143889.4125 | H38: ='Bkg-Impact Results'!F23 -> -288176.07 | I38: =SUM(F38:G38) -> -288176.07 | N38: PTT | O38: ='Bkg-Ref scenario'!D23 -> 192382.21 | P38: ='Bkg-Ref scenario'!E23 -> 191852.55 | Q38: ='Bkg-Ref scenario'!F23 -> 384234.76 | R38: 384234.76 | W38: PTT | X38: ='Bkg-ND scenario'!D23 -> 48095.5525 | Y38: ='Bkg-ND scenario'!E23 -> 47963.1375 | Z38: ='Bkg-ND scenario'!F23 -> 96058.69
E39: Serum Folate | F39: ='Bkg-Impact Results'!D24 -> -3426.4125 | G39: ='Bkg-Impact Results'!E24 -> -3494.8125 | H39: ='Bkg-Impact Results'!F24 -> -6921.225 | I39: -6921.225 | N39: Serum Folate | O39: ='Bkg-Ref scenario'!D24 -> 3606.75 | P39: ='Bkg-Ref scenario'!E24 -> 3678.75 | Q39: ='Bkg-Ref scenario'!F24 -> 7285.5 | R39: 7285.5 | W39: Serum Folate | X39: ='Bkg-ND scenario'!D24 -> 180.3375 | Y39: ='Bkg-ND scenario'!E24 -> 183.9375 | Z39: ='Bkg-ND scenario'!F24 -> 364.275
E40: Total Direct Costs-Net impact | F40: ='Bkg-Impact Results'!D25 -> -153251.408 | G40: ='Bkg-Impact Results'!E25 -> -152838.403 | H40: ='Bkg-Impact Results'!F25 -> -306089.811 | I40: -306089.811 | N40: Total Direct Costs | O40: ='Bkg-Ref scenario'!D25 -> 201880.36 | P40: ='Bkg-Ref scenario'!E25 -> 201337.74 | Q40: ='Bkg-Ref scenario'!F25 -> 403218.1 | R40: 403218.1 | W40: Total Direct Costs | X40: ='Bkg-ND scenario'!D25 -> 48628.952 | Y40: ='Bkg-ND scenario'!E25 -> 48499.337 | Z40: ='Bkg-ND scenario'!F25 -> 97128.289
E41: *Note: Negative values reflect cost savings | G41: =SUM(G35:G39) -> -152838.403 | H41: -306089.811 | N41: *Note: Negative values reflect cost savings | P41: =SUM(P35:P39) -> 201337.74 | Q41: 403218.1 | W41: *Note: Negative values reflect cost savings | Y41: =SUM(Y35:Y39) -> 48499.337 | Z41: 97128.289
F44: Year | O44: Year | X44: Year
E45: Analyzer time savings (hours) | F45: 2021 | G45: 2022 | H45: 2-Year Total | N45: Analyzer time (hours) | O45: 2021 | P45: 2022 | Q45: 2-Year Total | W45: Analyzer time (hours) | X45: 2021 | Y45: 2022 | Z45: 2-Year Total
E46: Urea | F46: ='Bkg-Impact Results'!D29 -> -19623.98375 | G46: ='Bkg-Impact Results'!E29 -> -18984.25375 | H46: ='Bkg-Impact Results'!F29 -> -38608.2375 | I46: =SUM(F46:G46) -> -38608.2375 | N46: Urea | O46: ='Bkg-Ref scenario'!D29 -> 20656.825 | P46: ='Bkg-Ref scenario'!E29 -> 19983.425 | Q46: ='Bkg-Ref scenario'!F29 -> 40640.25 | R46: =SUM(O46:P46) -> 40640.25 | W46: Urea | X46: ='Bkg-ND scenario'!D29 -> 1032.84125 | Y46: ='Bkg-ND scenario'!E29 -> 999.17125 | Z46: ='Bkg-ND scenario'!F29 -> 2032.0125
E47: AST | F47: ='Bkg-Impact Results'!D30 -> -5483.625 | G47: ='Bkg-Impact Results'!E30 -> -5806.875 | H47: ='Bkg-Impact Results'!F30 -> -11290.5 | I47: =SUM(F47:G47) -> -11290.5 | N47: AST | O47: ='Bkg-Ref scenario'!D30 -> 6092.916667 | P47: ='Bkg-Ref scenario'!E30 -> 6452.083333 | Q47: ='Bkg-Ref scenario'!F30 -> 12545 | R47: =SUM(O47:P47) -> 12545 | W47: AST | X47: ='Bkg-ND scenario'!D30 -> 609.2916667 | Y47: ='Bkg-ND scenario'!E30 -> 645.2083333 | Z47: ='Bkg-ND scenario'!F30 -> 1254.5
E48: CK-MB | F48: ='Bkg-Impact Results'!D31 -> 0 | G48: ='Bkg-Impact Results'!E31 -> 0 | H48: ='Bkg-Impact Results'!F31 -> 0 | I48: 0 | N48: CK-MB | O48: ='Bkg-Ref scenario'!D31 -> 0 | P48: ='Bkg-Ref scenario'!E31 -> 0 | Q48: ='Bkg-Ref scenario'!F31 -> 0 | R48: 0 | W48: CK-MB | X48: ='Bkg-ND scenario'!D31 -> 0 | Y48: ='Bkg-ND scenario'!E31 -> 0 | Z48: ='Bkg-ND scenario'!F31 -> 0
E49: PTT | F49: ='Bkg-Impact Results'!D32 -> -8220.084375 | G49: ='Bkg-Impact Results'!E32 -> -8197.453125 | H49: ='Bkg-Impact Results'!F32 -> -16417.5375 | I49: -16417.5375 | N49: PTT | O49: ='Bkg-Ref scenario'!D32 -> 10960.1125 | P49: ='Bkg-Ref scenario'!E32 -> 10929.9375 | Q49: ='Bkg-Ref scenario'!F32 -> 21890.05 | R49: 21890.05 | W49: PTT | X49: ='Bkg-ND scenario'!D32 -> 2740.028125 | Y49: ='Bkg-ND scenario'!E32 -> 2732.484375 | Z49: ='Bkg-ND scenario'!F32 -> 5472.5125
E50: Serum Folate | F50: ='Bkg-Impact Results'!D33 -> -1154.827917 | G50: ='Bkg-Impact Results'!E33 -> -1177.88125 | H50: ='Bkg-Impact Results'!F33 -> -2332.709167 | I50: -2332.709167 | N50: Serum Folate | O50: ='Bkg-Ref scenario'!D33 -> 1215.608333 | P50: ='Bkg-Ref scenario'!E33 -> 1239.875 | Q50: ='Bkg-Ref scenario'!F33 -> 2455.483333 | R50: 2455.483333 | W50: Serum Folate | X50: ='Bkg-ND scenario'!D33 -> 60.78041667 | Y50: ='Bkg-ND scenario'!E33 -> 61.99375 | Z50: ='Bkg-ND scenario'!F33 -> 122.7741667
E51: Total Analyzer time-Net impact | F51: ='Bkg-Impact Results'!D34 -> -34482.52104 | G51: ='Bkg-Impact Results'!E34 -> -34166.46312 | H51: ='Bkg-Impact Results'!F34 -> -68648.98417 | I51: -68648.98417 | N51: Total Analyzer Time | O51: ='Bkg-Ref scenario'!D34 -> 38925.4625 | P51: ='Bkg-Ref scenario'!E34 -> 38605.32083 | Q51: ='Bkg-Ref scenario'!F34 -> 77530.78333 | R51: 77530.78333 | W51: Total Analyzer Time | X51: ='Bkg-ND scenario'!D34 -> 4442.941458 | Y51: ='Bkg-ND scenario'!E34 -> 4438.857708 | Z51: ='Bkg-ND scenario'!F34 -> 8881.799167
E52: *Note: Negative values reflect cost savings | G52: =SUM(G46:G50) -> -34166.46312 | H52: -68648.98417 | N52: *Note: Negative values reflect cost savings | P52: =SUM(P46:P50) -> 38605.32083 | Q52: 77530.78333 | W52: *Note: Negative values reflect cost savings | Y52: =SUM(Y46:Y50) -> 4438.857708 | Z52: 8881.799167
F55: Year | O55: Year | X55: Year
E56: Exploratory result: cost of reordering abnormal tests | F56: 2021 | G56: 2022 | H56: 2-Year Total | N56: Exploratory result: cost of reordering abnormal tests | O56: 2021 | P56: 2022 | Q56: 2-Year Total | W56: Exploratory result: cost of reordering abnormal tests | X56: 2021 | Y56: 2022 | Z56: 2-Year Total
E57: Urea | F57: ='Bkg-Impact Results'!D38 -> -17283.12283 | G57: ='Bkg-Impact Results'!E38 -> -16719.70348 | H57: ='Bkg-Impact Results'!F38 -> -34002.82631 | I57: =SUM(F57:G57) -> -34002.82631 | N57: Urea | O57: ='Bkg-Ref scenario'!D38 -> 18192.76087 | P57: ='Bkg-Ref scenario'!E38 -> 17599.68787 | Q57: ='Bkg-Ref scenario'!F38 -> 35792.44875 | R57: =SUM(O57:P57) -> 35792.44875 | W57: Urea | X57: ='Bkg-ND scenario'!D38 -> 909.6380438 | Y57: ='Bkg-ND scenario'!E38 -> 879.9843938 | Z57: ='Bkg-ND scenario'!F38 -> 1789.622438
E58: AST | F58: ='Bkg-Impact Results'!D39 -> -2704.52385 | G58: ='Bkg-Impact Results'!E39 -> -2863.95075 | H58: ='Bkg-Impact Results'!F39 -> -5568.4746 | I58: =SUM(F58:G58) -> -5568.4746 | N58: AST | O58: ='Bkg-Ref scenario'!D39 -> 3005.0265 | P58: ='Bkg-Ref scenario'!E39 -> 3182.1675 | Q58: ='Bkg-Ref scenario'!F39 -> 6187.194 | R58: =SUM(O58:P58) -> 6187.194 | W58: AST | X58: ='Bkg-ND scenario'!D39 -> 300.50265 | Y58: ='Bkg-ND scenario'!E39 -> 318.21675 | Z58: ='Bkg-ND scenario'!F39 -> 618.7194
E59: CK-MB | F59: ='Bkg-Impact Results'!D40 -> 0 | G59: ='Bkg-Impact Results'!E40 -> 0 | H59: ='Bkg-Impact Results'!F40 -> 0 | I59: 0 | N59: CK-MB | O59: ='Bkg-Ref scenario'!D40 -> 0 | P59: ='Bkg-Ref scenario'!E40 -> 0 | Q59: ='Bkg-Ref scenario'!F40 -> 0 | R59: 0 | W59: CK-MB | X59: ='Bkg-ND scenario'!D40 -> 0 | Y59: ='Bkg-ND scenario'!E40 -> 0 | Z59: ='Bkg-ND scenario'!F40 -> 0
E60: PTT | F60: ='Bkg-Impact Results'!D41 -> -19974.80503 | G60: ='Bkg-Impact Results'!E41 -> -19919.81109 | H60: ='Bkg-Impact Results'!F41 -> -39894.61612 | I60: -39894.61612 | N60: PTT | O60: ='Bkg-Ref scenario'!D41 -> 26633.07337 | P60: ='Bkg-Ref scenario'!E41 -> 26559.74812 | Q60: ='Bkg-Ref scenario'!F41 -> 53192.8215 | R60: 53192.8215 | W60: PTT | X60: ='Bkg-ND scenario'!D41 -> 6658.268344 | Y60: ='Bkg-ND scenario'!E41 -> 6639.937031 | Z60: ='Bkg-ND scenario'!F41 -> 13298.20537
E61: Serum Folate | F61: ='Bkg-Impact Results'!D42 -> -25.58388 | G61: ='Bkg-Impact Results'!E42 -> -26.0946 | H61: ='Bkg-Impact Results'!F42 -> -51.67848 | I61: -51.67848 | N61: Serum Folate | O61: ='Bkg-Ref scenario'!D42 -> 26.9304 | P61: ='Bkg-Ref scenario'!E42 -> 27.468 | Q61: ='Bkg-Ref scenario'!F42 -> 54.3984 | R61: 54.3984 | W61: Serum Folate | X61: ='Bkg-ND scenario'!D42 -> 1.34652 | Y61: ='Bkg-ND scenario'!E42 -> 1.3734 | Z61: ='Bkg-ND scenario'!F42 -> 2.71992
E62: Total costs | F62: ='Bkg-Impact Results'!D43 -> -39988.03559 | G62: ='Bkg-Impact Results'!E43 -> -39529.55992 | H62: ='Bkg-Impact Results'!F43 -> -79517.59552 | I62: -79517.59552 | N62: Total costs | O62: ='Bkg-Ref scenario'!D43 -> 47857.79115 | P62: ='Bkg-Ref scenario'!E43 -> 47369.0715 | Q62: ='Bkg-Ref scenario'!F43 -> 95226.86265 | R62: 95226.86265 | W62: Total costs | X62: ='Bkg-ND scenario'!D43 -> 7869.755557 | Y62: ='Bkg-ND scenario'!E43 -> 7839.511575 | Z62: ='Bkg-ND scenario'!F43 -> 15709.26713
E63: *Note: Negative values reflect cost savings | G63: =SUM(G57:G61) -> -39529.55992 | H63: -79517.59552 | N63: *Note: Negative values reflect cost savings | P63: =SUM(P57:P61) -> 47369.0715 | Q63: 95226.86265 | W63: *Note: Negative values reflect cost savings | Y63: =SUM(Y57:Y61) -> 7839.511575 | Z63: 15709.26713

Sheet Appendices and References
C6: References and Appendices
C8: Worksheets to the right of this sheet contain background calculations.
C10: Reference List
C12: Sahadeo, Prajna A., et al. "The Best of Both Worlds: Eliminating Creatine Kinase-Muscle/Brain (CK-MB) Testing in the Emergency Department Leads to Lower Costs Without Missed Clinical Diagnoses." Cureus 13.5 (2021).

Sheet Bkg-Ref scenario
B2: Reference Scenario Results
B6: Backend calculations estimating total market size and costs in the reference scenario.
B8: Market Size
D9: Number of tests annually
B10: Test | D10: 2021 | E10: 2022
B11: Blood urea nitrogren (BUN) | D11: ='Inputs-Current test volumes'!E51 -> 118039 | E11: ='Inputs-Current test volumes'!F51 -> 114191
B12: Aspartate aminotransferase (AST) | D12: ='Inputs-Current test volumes'!E52 -> 29246 | E12: ='Inputs-Current test volumes'!F52 -> 30970
B13: Creatine kinase (CK-MB) | D13: ='Inputs-Current test volumes'!E53 -> 0 | E13: ='Inputs-Current test volumes'!F53 -> 0
B14: Partial thromboplastin time (PTT) | D14: ='Inputs-Current test volumes'!E54 -> 51577 | E14: ='Inputs-Current test volumes'!F54 -> 51435
B15: Serum Folate | D15: ='Inputs-Current test volumes'!E55 -> 1603 | E15: ='Inputs-Current test volumes'!F55 -> 1635
B17: Direct costs
D18: Direct costs ($)
B19: Test | D19: 2021 | E19: 2022 | F19: 2 year total
B20: Blood urea nitrogren (BUN) | D20: =D$11*'Inputs-Direct costs'!$H$19 -> 4721.56 | E20: =E$11*'Inputs-Direct costs'!$H$19 -> 4567.64 | F20: =SUM(D20:E20) -> 9289.2
B21: Aspartate aminotransferase (AST) | D21: =D$12*'Inputs-Direct costs'!$H$20 -> 1169.84 | E21: =E$12*'Inputs-Direct costs'!$H$20 -> 1238.8 | F21: =SUM(D21:E21) -> 2408.64
B22: Creatine kinase (CK-MB) | D22: =D$13*'Inputs-Direct costs'!$H$21 -> 0 | E22: =E$13*'Inputs-Direct costs'!$H$21 -> 0 | F22: 0
B23: Partial thromboplastin time (PTT) | D23: =D$14*'Inputs-Direct costs'!$H$27 -> 192382.21 | E23: =E$14*'Inputs-Direct costs'!$H$27 -> 191852.55 | F23: 384234.76
B24: Serum Folate | D24: =D$15*'Inputs-Direct costs'!$H$44 -> 3606.75 | E24: =E$15*'Inputs-Direct costs'!$H$44 -> 3678.75 | F24: 7285.5
B25: Total | D25: =SUM(D20:D24) -> 201880.36 | E25: =SUM(E20:E24) -> 201337.74 | F25: 403218.1
B26: Analyzer time
D27: Time in HOURS
B28: Test | D28: 2021 | E28: 2022 | F28: 2 year total
B29: Blood urea nitrogren (BUN) | D29: =(D$11*'Inputs-Analyzer Time'!$E$32)/60 -> 20656.825 | E29: =(E$11*'Inputs-Analyzer Time'!$E$32)/60 -> 19983.425 | F29: =SUM(D29:E29) -> 40640.25
B30: Aspartate aminotransferase (AST) | D30: =(D$12*'Inputs-Analyzer Time'!$F$32)/60 -> 6092.916667 | E30: =(E$12*'Inputs-Analyzer Time'!$F$32)/60 -> 6452.083333 | F30: =SUM(D30:E30) -> 12545
B31: Creatine kinase (CK-MB) | D31: =(D$13*'Inputs-Analyzer Time'!$G$32)/60 -> 0 | E31: =(E$13*'Inputs-Analyzer Time'!$G$32)/60 -> 0 | F31: =SUM(D31:E31) -> 0
B32: Partial thromboplastin time (PTT) | D32: =(D$14*'Inputs-Analyzer Time'!$H$32)/60 -> 10960.1125 | E32: =(E$14*'Inputs-Analyzer Time'!$H$32)/60 -> 10929.9375 | F32: =SUM(D32:E32) -> 21890.05
B33: Serum Folate | D33: =(D$15*'Inputs-Analyzer Time'!$I$32)/60 -> 1215.608333 | E33: =(E$15*'Inputs-Analyzer Time'!$I$32)/60 -> 1239.875 | F33: =SUM(D33:E33) -> 2455.483333
B34: Total | D34: =SUM(D29:D33) -> 38925.4625 | E34: =SUM(E29:E33) -> 38605.32083 | F34: =SUM(D34:E34) -> 77530.78333
B35: Cost of retesting for abnormal tests
D36: Cost ($) | H36: Background Calc-Abnormal test
B37: Test | D37: 2021 | E37: 2022 | F37: 2 year total | H37: Test
B38: Blood urea nitrogren (BUN) | D38: =D11*retest_BUN -> 18192.76087 | E38: =E11*retest_BUN -> 17599.68787 | F38: =SUM(D38:E38) -> 35792.44875 | H38: Blood urea nitrogren (BUN) | I38: ='Inputs-Abnormal tests'!G20*'Inputs-Abnormal tests'!G31*'Inputs-Abnormal tests'!G43 -> 0.154125
B39: Aspartate aminotransferase (AST) | D39: =D12*retest_AST -> 3005.0265 | E39: =E12*retest_AST -> 3182.1675 | F39: =SUM(D39:E39) -> 6187.194 | H39: Aspartate aminotransferase (AST) | I39: ='Inputs-Abnormal tests'!G21*'Inputs-Abnormal tests'!G32*'Inputs-Abnormal tests'!G44 -> 0.10275
B40: Creatine kinase (CK-MB) | D40: =D13*retest_CKMB -> 0 | E40: =E13*retest_CKMB -> 0 | F40: 0 | H40: Creatine kinase (CK-MB) | I40: ='Inputs-Abnormal tests'!G22*'Inputs-Abnormal tests'!G33*'Inputs-Abnormal tests'!G45 -> 0.21
B41: Partial thromboplastin time (PTT) | D41: =D14*retest_PTT -> 26633.07337 | E41: =E14*retest_PTT -> 26559.74812 | F41: 53192.8215 | H41: Partial thromboplastin time (PTT) | I41: ='Inputs-Abnormal tests'!G23*'Inputs-Abnormal tests'!G34*'Inputs-Abnormal tests'!G46 -> 0.516375
B42: Serum Folate | D42: =D15*retest_folate -> 26.9304 | E42: =E15*retest_folate -> 27.468 | F42: 54.3984 | H42: Serum Folate | I42: ='Inputs-Abnormal tests'!G24*'Inputs-Abnormal tests'!G35*'Inputs-Abnormal tests'!G47 -> 0.0168
B43: Total | D43: =SUM(D38:D42) -> 47857.79115 | E43: =SUM(E38:E42) -> 47369.0715 | F43: =SUM(D43:E43) -> 95226.86265

Sheet Bkg-ND scenario
B2: New Policy Scenario Results
B6: Backend calculations estimating total market size and costs in the reductions in testing scenario.
B8: Market Size
D9: Number of tests annually
B10: Test | D10: 2021 | E10: 2022 | F10: 2 year total
B11: Blood urea nitrogren (BUN) | D11: =(100%-'Inputs-Reductions in testing'!F66)*'Inputs-Current test volumes'!E51 -> 5901.95 | E11: =(100%-'Inputs-Reductions in testing'!G66)*'Inputs-Current test volumes'!F51 -> 5709.55 | F11: =SUM(D11:E11) -> 11611.5
B12: Aspartate aminotransferase (AST) | D12: =(100%-'Inputs-Reductions in testing'!F67)*'Inputs-Current test volumes'!E52 -> 2924.6 | E12: =(100%-'Inputs-Reductions in testing'!G67)*'Inputs-Current test volumes'!F52 -> 3097 | F12: =SUM(D12:E12) -> 6021.6
B13: Creatine kinase (CK-MB) | D13: =(100%-'Inputs-Reductions in testing'!F68)*'Inputs-Current test volumes'!E53 -> 0 | E13: =(100%-'Inputs-Reductions in testing'!G68)*'Inputs-Current test volumes'!F53 -> 0 | F13: =SUM(D13:E13) -> 0
B14: Partial thromboplastin time (PTT) | D14: =(100%-'Inputs-Reductions in testing'!F69)*'Inputs-Current test volumes'!E54 -> 12894.25 | E14: =(100%-'Inputs-Reductions in testing'!G69)*'Inputs-Current test volumes'!F54 -> 12858.75 | F14: =SUM(D14:E14) -> 25753
B15: Serum Folate | D15: =(100%-'Inputs-Reductions in testing'!F70)*'Inputs-Current test volumes'!E55 -> 80.15 | E15: =(100%-'Inputs-Reductions in testing'!G70)*'Inputs-Current test volumes'!F55 -> 81.75 | F15: =SUM(D15:E15) -> 161.9
F16: 0
B17: Direct costs
D18: Direct costs ($)
B19: Test | D19: 2021 | E19: 2022 | F19: 2 year total
B20: Blood urea nitrogren (BUN) | D20: =D$11*'Inputs-Direct costs'!$H$19 -> 236.078 | E20: =E$11*'Inputs-Direct costs'!$H$19 -> 228.382 | F20: =SUM(D20:E20) -> 464.46
B21: Aspartate aminotransferase (AST) | D21: =D$12*'Inputs-Direct costs'!$H$20 -> 116.984 | E21: =E$12*'Inputs-Direct costs'!$H$20 -> 123.88 | F21: =SUM(D21:E21) -> 240.864
B22: Creatine kinase (CK-MB) | D22: =D$13*'Inputs-Direct costs'!$H$21 -> 0 | E22: =E$13*'Inputs-Direct costs'!$H$21 -> 0 | F22: =SUM(D22:E22) -> 0
B23: Partial thromboplastin time (PTT) | D23: =D$14*'Inputs-Direct costs'!$H$27 -> 48095.5525 | E23: =E$14*'Inputs-Direct costs'!$H$27 -> 47963.1375 | F23: 96058.69
B24: Serum Folate | D24: =D$15*'Inputs-Direct costs'!$H$44 -> 180.3375 | E24: =E$15*'Inputs-Direct costs'!$H$44 -> 183.9375 | F24: 364.275
B25: Total | D25: =SUM(D20:D24) -> 48628.952 | E25: =SUM(E20:E24) -> 48499.337 | F25: 97128.289
B26: Analyzer time | F26: 0
D27: Time in HOURS
B28: Test | D28: 2021 | E28: 2022 | F28: 2 year total
B29: Blood urea nitrogren (BUN) | D29: =(D$11*'Inputs-Analyzer Time'!$E$32)/60 -> 1032.84125 | E29: =(E$11*'Inputs-Analyzer Time'!$E$32)/60 -> 999.17125 | F29: =SUM(D29:E29) -> 2032.0125
B30: Aspartate aminotransferase (AST) | D30: =(D$12*'Inputs-Analyzer Time'!$F$32)/60 -> 609.2916667 | E30: =(E$12*'Inputs-Analyzer Time'!$F$32)/60 -> 645.2083333 | F30: 1254.5
B31: Creatine kinase (CK-MB) | D31: =(D$13*'Inputs-Analyzer Time'!$G$32)/60 -> 0 | E31: =(E$13*'Inputs-Analyzer Time'!$G$32)/60 -> 0 | F31: 0
B32: Partial thromboplastin time (PTT) | D32: =(D$14*'Inputs-Analyzer Time'!$H$32)/60 -> 2740.028125 | E32: =(E$14*'Inputs-Analyzer Time'!$H$32)/60 -> 2732.484375 | F32: 5472.5125
B33: Serum Folate | D33: =(D$15*'Inputs-Analyzer Time'!$I$32)/60 -> 60.78041667 | E33: =(E$15*'Inputs-Analyzer Time'!$I$32)/60 -> 61.99375 | F33: 122.7741667
B34: Total | D34: =SUM(D29:D33) -> 4442.941458 | E34: =SUM(E29:E33) -> 4438.857708 | F34: 8881.799167
B35: Cost of retesting for abnormal tests
D36: Time in mins
B37: Test | D37: 2021 | E37: 2022 | F37: 2 year total
B38: Blood urea nitrogren (BUN) | D38: =D11*retest_BUN -> 909.6380438 | E38: =E11*retest_BUN -> 879.9843938 | F38: =SUM(D38:E38) -> 1789.622438
B39: Aspartate aminotransferase (AST) | D39: =D12*retest_AST -> 300.50265 | E39: =E12*retest_AST -> 318.21675 | F39: 618.7194
B40: Creatine kinase (CK-MB) | D40: =D13*retest_CKMB -> 0 | E40: =E13*retest_CKMB -> 0 | F40: 0
B41: Partial thromboplastin time (PTT) | D41: =D14*retest_PTT -> 6658.268344 | E41: =E14*retest_PTT -> 6639.937031 | F41: 13298.20537
B42: Serum Folate | D42: =D15*retest_folate -> 1.34652 | E42: =E15*retest_folate -> 1.3734 | F42: 2.71992
B43: Total | D43: =SUM(D38:D42) -> 7869.755557 | E43: =SUM(E38:E42) -> 7839.511575 | F43: 15709.26713

Sheet Bkg-Impact Results
B2: New Policy Scenario Results
B6: Backend calculations estimating total market size and costs in resource impact scenario.
B8: Market Size
D9: Number of tests annually
B10: Test | D10: 2021 | E10: 2022
B11: Blood urea nitrogren (BUN) | D11: ='Bkg-ND scenario'!D11-'Bkg-Ref scenario'!D11 -> -112137.05 | E11: ='Bkg-ND scenario'!E11-'Bkg-Ref scenario'!E11 -> -108481.45
B12: Aspartate aminotransferase (AST) | D12: ='Bkg-ND scenario'!D12-'Bkg-Ref scenario'!D12 -> -26321.4 | E12: ='Bkg-ND scenario'!E12-'Bkg-Ref scenario'!E12 -> -27873
B13: Creatine kinase (CK-MB) | D13: ='Bkg-ND scenario'!D13-'Bkg-Ref scenario'!D13 -> 0 | E13: ='Bkg-ND scenario'!E13-'Bkg-Ref scenario'!E13 -> 0
B14: Partial thromboplastin time (PTT) | D14: ='Bkg-ND scenario'!D14-'Bkg-Ref scenario'!D14 -> -38682.75 | E14: ='Bkg-ND scenario'!E14-'Bkg-Ref scenario'!E14 -> -38576.25 | H14: CHECK
B15: Serum Folate | D15: ='Bkg-ND scenario'!D15-'Bkg-Ref scenario'!D15 -> -1522.85 | E15: ='Bkg-ND scenario'!E15-'Bkg-Ref scenario'!E15 -> -1553.25
B17: Direct costs | H17: Direct costs | M17: check
D18: Direct costs ($) | J18: Direct costs ($)
B19: Test | D19: 2021 | E19: 2022 | F19: Two year total | H19: Test | J19: 2021 | K19: 2022 | L19: Two year total
B20: Blood urea nitrogren (BUN) | D20: =D$11*'Inputs-Direct costs'!$H$19 -> -4485.482 | E20: =E$11*'Inputs-Direct costs'!$H$19 -> -4339.258 | F20: =SUM(D20:E20) -> -8824.74 | H20: Blood urea nitrogren (BUN) | J20: ='Bkg-ND scenario'!D20-'Bkg-Ref scenario'!D20 -> -4485.482 | K20: ='Bkg-ND scenario'!E20-'Bkg-Ref scenario'!E20 -> -4339.258 | L20: =SUM(J20:K20) -> -8824.74 | M20: =IF(D20=J20,TRUE,FALSE) -> TRUE | N20: TRUE | O20: TRUE
B21: Aspartate aminotransferase (AST) | D21: =D$12*'Inputs-Direct costs'!$H$20 -> -1052.856 | E21: =E$12*'Inputs-Direct costs'!$H$20 -> -1114.92 | F21: =SUM(D21:E21) -> -2167.776 | H21: Aspartate aminotransferase (AST) | J21: ='Bkg-ND scenario'!D21-'Bkg-Ref scenario'!D21 -> -1052.856 | K21: ='Bkg-ND scenario'!E21-'Bkg-Ref scenario'!E21 -> -1114.92 | L21: =SUM(J21:K21) -> -2167.776 | M21: TRUE | N21: TRUE | O21: TRUE
B22: Creatine kinase (CK-MB) | D22: =D$13*'Inputs-Direct costs'!$H$21 -> 0 | E22: =E$13*'Inputs-Direct costs'!$H$21 -> 0 | F22: 0 | H22: Creatine kinase (CK-MB) | J22: ='Bkg-ND scenario'!D22-'Bkg-Ref scenario'!D22 -> 0 | K22: ='Bkg-ND scenario'!E22-'Bkg-Ref scenario'!E22 -> 0 | L22: 0 | M22: TRUE | N22: TRUE | O22: TRUE
B23: Partial thromboplastin time (PTT) | D23: =D$14*'Inputs-Direct costs'!$H$27 -> -144286.6575 | E23: =E$14*'Inputs-Direct costs'!$H$27 -> -143889.4125 | F23: -288176.07 | H23: Partial thromboplastin time (PTT) | J23: ='Bkg-ND scenario'!D23-'Bkg-Ref scenario'!D23 -> -144286.6575 | K23: ='Bkg-ND scenario'!E23-'Bkg-Ref scenario'!E23 -> -143889.4125 | L23: -288176.07 | M23: TRUE | N23: TRUE | O23: TRUE
B24: Serum Folate | D24: =D$15*'Inputs-Direct costs'!$H$44 -> -3426.4125 | E24: =E$15*'Inputs-Direct costs'!$H$44 -> -3494.8125 | F24: -6921.225 | H24: Serum Folate | J24: ='Bkg-ND scenario'!D24-'Bkg-Ref scenario'!D24 -> -3426.4125 | K24: ='Bkg-ND scenario'!E24-'Bkg-Ref scenario'!E24 -> -3494.8125 | L24: -6921.225 | M24: TRUE | N24: TRUE | O24: TRUE
B25: Total | D25: =SUM(D20:D24) -> -153251.408 | E25: =SUM(E20:E24) -> -152838.403 | F25: -306089.811 | H25: Total | J25: =SUM(J20:J24) -> -153251.408 | K25: =SUM(K20:K24) -> -152838.403 | L25: -306089.811 | M25: TRUE | N25: TRUE | O25: TRUE
B26: Analyzer time | H26: Analyzer time
D27: Time in hours | J27: Time in hours
B28: Test | D28: 2021 | E28: 2022 | F28: Two year total | H28: Test | J28: 2021 | K28: 2022 | L28: Two year total
B29: Blood urea nitrogren (BUN) | D29: =(D$11*'Inputs-Analyzer Time'!$E$32)/60 -> -19623.98375 | E29: =(E$11*'Inputs-Analyzer Time'!$E$32)/60 -> -18984.25375 | F29: =SUM(D29:E29) -> -38608.2375 | H29: Blood urea nitrogren (BUN) | J29: ='Bkg-ND scenario'!D29-'Bkg-Ref scenario'!D29 -> -19623.98375 | K29: ='Bkg-ND scenario'!E29-'Bkg-Ref scenario'!E29 -> -18984.25375 | L29: =SUM(J29:K29) -> -38608.2375 | M29: =IF(D29=J29,TRUE,FALSE) -> TRUE | N29: TRUE | O29: TRUE
B30: Aspartate aminotransferase (AST) | D30: =(D$12*'Inputs-Analyzer Time'!$F$32)/60 -> -5483.625 | E30: =(E$12*'Inputs-Analyzer Time'!$F$32)/60 -> -5806.875 | F30: -11290.5 | H30: Aspartate aminotransferase (AST) | J30: ='Bkg-ND scenario'!D30-'Bkg-Ref scenario'!D30 -> -5483.625 | K30: ='Bkg-ND scenario'!E30-'Bkg-Ref scenario'!E30 -> -5806.875 | L30: =SUM(J30:K30) -> -11290.5 | M30: TRUE | N30: TRUE | O30: TRUE
B31: Creatine kinase (CK-MB) | D31: =(D$13*'Inputs-Analyzer Time'!$G$32)/60 -> 0 | E31: =(E$13*'Inputs-Analyzer Time'!$G$32)/60 -> 0 | F31: 0 | H31: Creatine kinase (CK-MB) | J31: ='Bkg-ND scenario'!D31-'Bkg-Ref scenario'!D31 -> 0 | K31: ='Bkg-ND scenario'!E31-'Bkg-Ref scenario'!E31 -> 0 | L31: 0 | M31: TRUE | N31: TRUE | O31: TRUE
B32: Partial thromboplastin time (PTT) | D32: =(D$14*'Inputs-Analyzer Time'!$H$32)/60 -> -8220.084375 | E32: =(E$14*'Inputs-Analyzer Time'!$H$32)/60 -> -8197.453125 | F32: -16417.5375 | H32: Partial thromboplastin time (PTT) | J32: ='Bkg-ND scenario'!D32-'Bkg-Ref scenario'!D32 -> -8220.084375 | K32: ='Bkg-ND scenario'!E32-'Bkg-Ref scenario'!E32 -> -8197.453125 | L32: -16417.5375 | M32: TRUE | N32: TRUE | O32: TRUE
B33: Serum Folate | D33: =(D$15*'Inputs-Analyzer Time'!$I$32)/60 -> -1154.827917 | E33: =(E$15*'Inputs-Analyzer Time'!$I$32)/60 -> -1177.88125 | F33: -2332.709167 | H33: Serum Folate | J33: ='Bkg-ND scenario'!D33-'Bkg-Ref scenario'!D33 -> -1154.827917 | K33: ='Bkg-ND scenario'!E33-'Bkg-Ref scenario'!E33 -> -1177.88125 | L33: -2332.709167 | M33: TRUE | N33: TRUE | O33: TRUE
B34: Total | D34: =SUM(D29:D33) -> -34482.52104 | E34: =SUM(E29:E33) -> -34166.46312 | F34: -68648.98417 | H34: Total | J34: =SUM(J29:J33) -> -34482.52104 | K34: =SUM(K29:K33) -> -34166.46313 | L34: -68648.98417 | M34: TRUE | N34: TRUE | O34: TRUE
B35: Cost of retesting for abnormal tests | H35: Cost of retesting for abnormal tests
D36: Time in mins | J36: Time in mins
B37: Test | D37: 2021 | E37: 2022 | F37: Two year total | H37: Test | J37: 2021 | K37: 2022 | L37: Two year total
B38: Blood urea nitrogren (BUN) | D38: =D11*retest_BUN -> -17283.12283 | E38: =E11*retest_BUN -> -16719.70348 | F38: =SUM(D38:E38) -> -34002.82631 | H38: Blood urea nitrogren (BUN) | J38: ='Bkg-Ref scenario'!D38-'Bkg-ND scenario'!D38 -> 17283.12283 | K38: ='Bkg-Ref scenario'!E38-'Bkg-ND scenario'!E38 -> 16719.70348 | L38: =SUM(J38:K38) -> 34002.82631 | M38: =IF(D38=J38,TRUE,FALSE) -> FALSE | N38: =IF(E38=K38,TRUE,FALSE) -> FALSE | O38: =IF(F38=L38,TRUE,FALSE) -> FALSE
B39: Aspartate aminotransferase (AST) | D39: =D12*retest_AST -> -2704.52385 | E39: =E12*retest_AST -> -2863.95075 | F39: =SUM(D39:E39) -> -5568.4746 | H39: Aspartate aminotransferase (AST) | J39: ='Bkg-Ref scenario'!D39-'Bkg-ND scenario'!D39 -> 2704.52385 | K39: ='Bkg-Ref scenario'!E39-'Bkg-ND scenario'!E39 -> 2863.95075 | L39: =SUM(J39:K39) -> 5568.4746 | M39: =IF(D39=J39,TRUE,FALSE) -> FALSE | N39: FALSE | O39: FALSE
B40: Creatine kinase (CK-MB) | D40: =D13*retest_CKMB -> 0 | E40: =E13*retest_CKMB -> 0 | F40: 0 | H40: Creatine kinase (CK-MB) | J40: ='Bkg-Ref scenario'!D40-'Bkg-ND scenario'!D40 -> 0 | K40: ='Bkg-Ref scenario'!E40-'Bkg-ND scenario'!E40 -> 0 | L40: 0 | M40: TRUE | N40: TRUE | O40: TRUE
B41: Partial thromboplastin time (PTT) | D41: =D14*retest_PTT -> -19974.80503 | E41: =E14*retest_PTT -> -19919.81109 | F41: -39894.61612 | H41: Partial thromboplastin time (PTT) | J41: ='Bkg-Ref scenario'!D41-'Bkg-ND scenario'!D41 -> 19974.80503 | K41: ='Bkg-Ref scenario'!E41-'Bkg-ND scenario'!E41 -> 19919.81109 | L41: 39894.61612 | M41: FALSE | N41: FALSE | O41: FALSE
B42: Serum Folate | D42: =D15*retest_folate -> -25.58388 | E42: =E15*retest_folate -> -26.0946 | F42: -51.67848 | H42: Serum Folate | J42: ='Bkg-Ref scenario'!D42-'Bkg-ND scenario'!D42 -> 25.58388 | K42: ='Bkg-Ref scenario'!E42-'Bkg-ND scenario'!E42 -> 26.0946 | L42: 51.67848 | M42: FALSE | N42: FALSE | O42: FALSE
D43: =SUM(D38:D42) -> -39988.03559 | E43: =SUM(E38:E42) -> -39529.55992 | F43: -79517.59552 | J43: =SUM(J38:J42) -> 39988.03559 | K43: =SUM(K38:K42) -> 39529.55992 | L43: 79517.59552 | M43: FALSE | N43: FALSE | O43: FALSE

Sheet Dropdowns
A2: Hospital type | B2: Acute academic
B3: Community/General
B4: Complex continuing care
B5: Small hospitals
A7: Approach to reduction in lab tests | B7: Percent reduction in test use
B8: Volume of lab tests
A10: Volume for 2022 | B10: Assume equal to 2021 volumes
B11: Manually enter 2022 volumes
B12: Based on linear extrapolation of historical data (where possible)
B15: Yes
B16: No

Sheet Central NS test numbers
B3: Year | C3: PT_INR | D3: PTT | E3: AST | F3: ALT | G3: Serum Folate | H3: Urea | I3: Cr | J3: CK-MB | K3: Troponin
B4: 2018 | C4: 58022 | D4: 48572 | E4: 23355 | F4: 26506 | G4: 1253 | H4: 118200 | I4: 131312 | J4: 0 | K4: 19071
B5: 2019 | C5: 54889 | D5: 46832 | E5: 25024 | F5: 27819 | G5: 1208 | H5: 114330 | I5: 128418 | J5: 0 | K5: 18321
B6: 2020 | C6: 52355 | D6: 48288 | E6: 26803 | F6: 29279 | G6: 1317 | H6: 110504 | I6: 139204 | J6: 0 | K6: 16185
B7: 2021 | C7: 55686 | D7: 51577 | E7: 29246 | F7: 31763 | G7: 1603 | H7: 118039 | I7: 139978 | J7: 0 | K7: 19169
A8: Projections | B8: 2022 | C8: =TREND(C4:C7,$B$4:$B$7,$B$8:$B$9) -> 52852.5 | D8: =TREND(D4:D7,$B$4:$B$7,$B$8:$B$9) -> 51435 | E8: =TREND(E4:E7,$B$4:$B$7,$B$8:$B$9) -> 30970 | F8: =TREND(F4:F7,$B$4:$B$7,$B$8:$B$9) -> 33149.5 | G8: =TREND(G4:G7,$B$4:$B$7,$B$8:$B$9) -> 1635 | H8: =TREND(H4:H7,$B$4:$B$7,$B$8:$B$9) -> 114191 | I8: =TREND(I4:I7,$B$4:$B$7,$B$8:$B$9) -> 143924 | K8: =TREND(K4:K7,$B$4:$B$7,$B$8:$B$9) -> 17726
B9: 2023 | C9: 51898.3 | D9: 52482.1 | E9: 32915.2 | F9: 34872.6 | G9: 1750.9 | H9: 113760.1 | I9: 147602.4 | K9: 17541.8

Sheet EORLA Cost data
A1: EORLA _ Reference Lab (TOH) | B1: Source | C1: Type of Expense | D1: Billable Units (2018-19) | F1: 2022-23 Pricing
H3: Total
F4: Fixed | G4: Variable
A6: PG10400 - SGOT (AST) | D6: 147862 | F6: 1.02 | G6: 0.57 | H6: 1.59
B7: Direct | F7: 0.8 | G7: 0.57 | H7: 1.37
C8: COMPENSATION - MOS | F8: 0.09 | G8: 0 | H8: 0.09
C9: COMPENSATION - MP | F9: 0.15 | G9: 0 | H9: 0.15
C10: COMPENSATION - UPP | F10: 0.45 | G10: 0 | H10: 0.46
C11: CONTRACTED OUT SERVICES | F11: 0 | G11: 0 | H11: 0
C12: SUPPLIES | F12: 0 | G12: 0.04 | H12: 0.04
C13: SUNDRY EXPENSE | F13: 0.01 | G13: 0 | H13: 0.01
C14: EQUIPMENT EXPENSE | F14: 0.07 | G14: 0 | H14: 0.07
C15: BUILDINGS / GROUNDS EXPENSE | F15: 0 | G15: 0 | H15: 0
C16: RECEIVING & ACCESSIONING | F16: 0.03 | G16: 0.53 | H16: 0.56
B17: Indirect | F17: 0.22 | G17: 0 | H17: 0.22
C18: Corporate Loading/Depreciation | F18: 0.18 | G18: 0 | H18: 0.18
C19: Site Administration | F19: 0.01 | G19: 0 | H19: 0.01
C20: Employee Future Benefits | F20: 0.01 | G20: 0 | H20: 0.01
C21: EORLA - LIS | F21: 0.02 | G21: 0 | H21: 0.02
A24: PG10420 - Urea nitrogen (B.U.N.) | D24: 358555 | F24: 1.02 | G24: 0.57 | H24: 1.59
B25: Direct | F25: 0.8 | G25: 0.57 | H25: 1.37
C26: COMPENSATION - MOS | F26: 0.09 | G26: 0 | H26: 0.09
C27: COMPENSATION - MP | F27: 0.15 | G27: 0 | H27: 0.15
C28: COMPENSATION - UPP | F28: 0.45 | G28: 0 | H28: 0.46
C29: CONTRACTED OUT SERVICES | F29: 0 | G29: 0 | H29: 0
C30: SUPPLIES | F30: 0 | G30: 0.04 | H30: 0.04
C31: SUNDRY EXPENSE | F31: 0.01 | G31: 0 | H31: 0.01
C32: EQUIPMENT EXPENSE | F32: 0.07 | G32: 0 | H32: 0.07
C33: BUILDINGS / GROUNDS EXPENSE | F33: 0 | G33: 0 | H33: 0
C34: RECEIVING & ACCESSIONING | F34: 0.03 | G34: 0.53 | H34: 0.56
B35: Indirect | F35: 0.22 | G35: 0 | H35: 0.22
C36: Corporate Loading/Depreciation | F36: 0.18 | G36: 0 | H36: 0.18
C37: Site Administration | F37: 0.01 | G37: 0 | H37: 0.01
C38: Employee Future Benefits | F38: 0.01 | G38: 0 | H38: 0.01
C39: EORLA - LIS | F39: 0.02 | G39: 0 | H39: 0.02
A42: PG10480 - Folate | D42: 18373 | F42: 1.66 | G42: 0.93 | H42: 2.59
B43: Direct | F43: 1.31 | G43: 0.93 | H43: 2.24
C44: COMPENSATION - MOS | F44: 0.19 | G44: 0 | H44: 0.19
C45: COMPENSATION - MP | F45: 0.15 | G45: 0 | H45: 0.15
C46: COMPENSATION - UPP | F46: 0.85 | G46: 0 | H46: 0.86
C47: CONTRACTED OUT SERVICES | F47: 0 | G47: 0 | H47: 0
C48: SUPPLIES | F48: 0 | G48: 0.4 | H48: 0.4
C49: SUNDRY EXPENSE | F49: 0.02 | G49: 0 | H49: 0.02
C50: EQUIPMENT EXPENSE | F50: 0.07 | G50: 0 | H50: 0.07
C51: BUILDINGS / GROUNDS EXPENSE | F51: 0 | G51: 0 | H51: 0
C52: RECEIVING & ACCESSIONING | F52: 0.03 | G52: 0.53 | H52: 0.56
B53: Indirect | F53: 0.35 | G53: 0 | H53: 0.35
C54: Corporate Loading/Depreciation | F54: 0.3 | G54: 0 | H54: 0.3
C55: Site Administration | F55: 0.01 | G55: 0 | H55: 0.01
C56: Employee Future Benefits | F56: 0.01 | G56: 0 | H56: 0.01
C57: EORLA - LIS | F57: 0.03 | G57: 0 | H57: 0.03
A61: PG10740 - Partial thromboplastin time | D61: 53548 | F61: 0.91 | G61: 4.26 | H61: 5.17
B62: Direct | F62: 0.33 | G62: 4.26 | H62: 4.59
C63: COMPENSATION - MOS | F63: 0.15 | G63: 0 | H63: 0.15
C64: COMPENSATION - UPP | F64: 0 | G64: 2.47 | H64: 2.47
C65: CONTRACTED OUT SERVICES | F65: 0 | G65: 0 | H65: 0
C66: SUPPLIES | F66: 0 | G66: 1.26 | H66: 1.26
C67: SUNDRY EXPENSE | F67: 0.02 | G67: 0 | H67: 0.02
C68: EQUIPMENT EXPENSE | F68: 0.13 | G68: 0 | H68: 0.13
C69: BUILDINGS / GROUNDS EXPENSE | F69: 0 | G69: 0 | H69: 0
C70: RECEIVING & ACCESSIONING | F70: 0.03 | G70: 0.53 | H70: 0.56
B71: Indirect | F71: 0.58 | G71: 0 | H71: 0.58
C72: Corporate Loading/Depreciation | F72: 0.52 | G72: 0 | H72: 0.52
C73: Site Administration | F73: 0.01 | G73: 0 | H73: 0.01
C74: Employee Future Benefits | F74: 0.01 | H74: 0.01
C75: EORLA - LIS | F75: 0.04 | G75: 0 | H75: 0.04

Sheet Test time
B4: Test | C4: Analyzer analysis time per test | D4: Reporting time when within auto-validation limits | E4: Reporting time when outside auto-validation limits* | F4: Reporting time when outside auto-validation limits* MEDIAN
B5: Urea | C5: 8 minutes | D5: ~2-3 mins | E5: ~4- 10 mins | F5: =MEDIAN(4,10) -> 7
B6: Folate | C6: 43 minutes | D6: ~2-3 mins | E6: ~4 mins | F6: 4
B7: AST | C7: 10 minutes | D7: ~2-3 mins | E7: ~4-10 mins | F7: =MEDIAN(4,10) -> 7
B8: PTT | C8: 5.5- 15 minutes**
B9: CK-MB | C9: Not done in NS

Sheet Data Store (hidden)
C1: Cost per test
C2: BUN | D2: Folate | E2: PTT | F2: AST | G2: CK-MB | I2: Median Lab Assistant hourly wage
B3: Province
B4: Newfoundland and Labrador | C4: BUN cost | D4: Folate cost | E4: PPT $ | F4: AST$ | G4: CK-MB $ | I4: 29
B5: Prince Edward Island | C5: BUN cost | D5: Folate cost | E5: PPT $ | F5: AST$ | G5: CK-MB $ | I5: 25
B6: Nova Scotia | C6: BUN cost | D6: Folate cost | E6: PPT $ | F6: AST$ | G6: CK-MB $ | I6: 23.9 | N6: User Input | O6: Default | P6: Current Value | R6: Notes/Source
B7: New Brunswick | C7: BUN cost | D7: Folate cost | E7: PPT $ | F7: AST$ | G7: CK-MB $ | I7: 21.46 | K7: Hourly cost of MLA time | O7: =INDEX('Data Store'!$I$2:$I$16,MATCH('Data Store'!$E$27,'Data Store'!$B$2:$B$16,0),) -> 29 | P7: =IF(N7="",O7,N7) -> 29 | R7: https://www.jobbank.gc.ca/marketreport/wages-occupation/4214/ca
B8: Quebec | C8: BUN cost | D8: Folate cost | E8: PPT $ | F8: AST$ | G8: CK-MB $ | I8: 29
B9: Ontario | C9: 1.28 | D9: 3.11 | E9: 2.66 | F9: 1.28 | G9: CK-MB $ | I9: 29
B10: Manitoba | C10: BUN cost | D10: Folate cost | E10: PPT $ | F10: AST$ | G10: CK-MB $ | I10: 24.3
B11: Saskatchewan | C11: BUN cost | D11: Folate cost | E11: 10.2 | F11: AST$ | G11: CK-MB $ | I11: 23.41
B12: Alberta | C12: 11.91 | D12: Folate cost | E12: 16.88 | F12: AST$ | G12: CK-MB $ | I12: 28.34
B13: British Columbia | C13: BUN cost | D13: Folate cost | E13: PPT $ | F13: AST$ | G13: CK-MB $ | I13: 25
B14: Yukon | C14: BUN cost | D14: Folate cost | E14: PPT $ | F14: AST$ | G14: CK-MB $ | I14: =AVERAGE($I$4:$I$13) -> 25.841 | J14: NA-Average of other jurisdictions
B15: Northwest Territories | C15: BUN cost | D15: Folate cost | E15: PPT $ | F15: AST$ | G15: CK-MB $ | I15: =AVERAGE($I$4:$I$13) -> 25.841 | J15: NA-Average of other jurisdictions
B16: Nunavut | C16: BUN cost | D16: Folate cost | E16: PPT $ | F16: AST$ | G16: CK-MB $ | I16: 25.841 | J16: NA-Average of other jurisdictions
I17: Source: https://www.jobbank.gc.ca/marketreport/wages-occupation/4214/ca
C19: Schedule of benefit costs
C20: Test | F20: User Input | G20: Default | H20: Current Value | J20: Notes/Source
C21: Urea | G21: =INDEX('Data Store'!$B$2:$G$16,MATCH('Data Store'!$E$27,'Data Store'!$B$2:$B$16,0),2) -> BUN cost | H21: =IF(F21="",G21,F21) -> BUN cost | J21: Based on the provincial schedule of benefits fee.
C22: Folate | G22: =INDEX('Data Store'!$B$2:$G$16,MATCH('Data Store'!$E$27,'Data Store'!$B$2:$B$16,0),3) -> Folate cost | H22: =IF(F22="",G22,F22) -> Folate cost | J22: In provinces where SOB weren't identify, Ontario costs were used as defaults.
C23: Partial thromboplastin time (PTT) | G23: =INDEX('Data Store'!$B$2:$G$16,MATCH('Data Store'!$E$27,'Data Store'!$B$2:$B$16,0),4) -> PPT $ | H23: =IF(F23="",G23,F23) -> PPT $
C24: Aspartate aminotransferase (AST) | G24: =INDEX('Data Store'!$B$2:$G$16,MATCH('Data Store'!$E$27,'Data Store'!$B$2:$B$16,0),5) -> AST$ | H24: =IF(F24="",G24,F24) -> AST$
C25: Creatine kinase (CK-MB) | G25: =INDEX('Data Store'!$B$2:$G$16,MATCH('Data Store'!$E$27,'Data Store'!$B$2:$B$16,0),6) -> CK-MB $ | H25: =IF(F25="",G25,F25) -> CK-MB $
C27: Province | E27: Quebec

Sheet Query Indirect costs (hidden)
C5: Inputs-Indirect costs
C7: Hospital indirect cost per test
C8: Test | F8: User Input | G8: Default | H8: Current Value
C9: Urea | G9: 0.22 | H9: =IF(F9="",G9,F9) -> 0.22 | J9: Source: EORLA reference labs; 2022-23 pricing
C10: Folate | G10: 0.35 | H10: =IF(F10="",G10,F10) -> 0.35 | J10: Indirect costs include: corporate loading/deprecipation; site administration; employee future benefits and EORLA LIS
C11: Partial thromboplastin time (PTT) | G11: 0.58 | H11: =IF(F11="",G11,F11) -> 0.58
C12: Aspartate aminotransferase (AST) | G12: 0.22 | H12: =IF(F12="",G12,F12) -> 0.22
C13: Creatine kinase (CK-MB) | G13: =G10 -> 0.35 | H13: =IF(F13="",G13,F13) -> 0.35 | J13: CK-MB cost assumed to be equal to folate.
